Cogmind - Beta 13 X1 @@@ ROGUE MODE // 2023.08.27 @ 22:10:14 Player: VR-DUX Result: Destroyed by G-34 Mercenary with Small Laser Performance ------------- Evolutions (1) 500 Regions Visited (4) 800 Robots Destroyed (63) 315 Value Destroyed (1340) 1340 Prototype IDs (5) 100 Alien Tech Used (0) 0 Bonus (50) 50 TOTAL SCORE: 3105 Bonus ------- Follower Combat Kills 50 Cogmind --------- Core Integrity 0/400 Matter 215/300 Energy 280/280 System Corruption 7% Temperature Cool (6) Movement Treading (320) Ox2 Location -9/Mines Parts ------- > --- POWER (1) -------- Heavy Ion Engine > --- PROPULSION (3) --- Light Treads > --- UTILITY (3) ------ High-capacity Storage Unit Signal Interpreter > --- WEAPON (2) ------- Improved Light Cannon (fused) > --- INVENTORY (20) --- Heavy Ion Engine Improved Flight Unit Improved Flight Unit Improved Flight Unit Improved Flight Unit Medium Storage Unit Large Storage Unit Experimental Sensor Array Targeting Computer Propulsion Shielding Improved Medium Laser Light Cannon Improved Light Cannon Improved Light Cannon Flail Katana Peak State ------------ > --- POWER ------------ Ion Engine > --- PROPULSION ------- Wheel Wheel > --- UTILITY ---------- High-capacity Storage Unit Experimental Sensor Array > --- WEAPON ----------- Grenade Launcher Flail > --- INVENTORY -------- Light Ion Engine Light Treads Light Treads Improved Flight Unit Heat Sink Medium Storage Unit Large Storage Unit Compact Matter Pod Structural Scanner Signal Interpreter Signal Interpreter Targeting Computer Propulsion Shielding EM Pulse Gun Improved EM Shotgun Improved EM Shotgun Improved Medium Laser Light EM Pulse Cannon Assault Rifle Light Cannon [Rating: 19] Favorites ----------- Power Ion Engine Engine Ion Engine Propulsion Light Treads Treads Light Treads Leg Aluminum Leg Wheel Wheel Flight Unit Improved Flight Unit Utility High-capacity Storage Unit Device Structural Scanner Storage High-capacity Storage Unit Processor Signal Interpreter Protection Light Armor Plating Weapon Improved Light Cannon Energy Gun EM Pulse Gun Energy Cannon Light EM Pulse Cannon Ballistic Gun Assault Rifle Ballistic Cannon Improved Light Cannon Launcher Grenade Launcher Impact Weapon Flail Slashing Weapon Katana Build | -11 -10 -10 -9 -9 ------- Run | Jun Mat Min Mat Min Slots Evolved 2 | . . . 2 . Power . | . . . . . Propulsion 1 | . . . 1 . Utility 1 | . . . 1 . Weapon . | . . . . . Parts Attached 76 | . 30 4 41 1 Power 7 | . 3 . 4 . Engine 7 | . 3 . 4 . Core . | . . . . . Reactor . | . . . . . Propulsion 28 | . 9 1 18 . Treads 11 | . 2 . 9 . Leg 5 | . 3 . 2 . Wheel 10 | . 3 1 6 . Hover . | . . . . . Flight 2 | . 1 . 1 . Utility 15 | . 7 3 5 . Device 4 | . 1 1 2 . Storage 3 | . 3 . . . Processor 2 | . . . 2 . Hackware . | . . . . . Protection 6 | . 3 2 1 . Artifact . | . . . . . Weapon 26 | . 11 . 14 1 Energy Gun 11 | . 4 . 7 . Energy Cannon 1 | . . . 1 . Ballistic Gun 4 | . 1 . 3 . Ballistic Cannon 5 | . 2 . 2 1 Launcher 3 | . 3 . . . Special Weapon . | . . . . . Impact Weapon 1 | . 1 . . . Slashing Weapon 1 | . . . 1 . Piercing Weapon . | . . . . . Special Melee Weapon . | . . . . . Unidentified Prototypes 5 | . 3 1 1 . Corrupted Parts 1 | . . . 1 . System Corruption 4 | . . . 4 . Parts Lost 17 | . . . 14 3 Power 1 | . . . 1 . Propulsion 8 | . . . 7 1 Utility 3 | . . . 3 . Weapon 5 | . . . 3 2 Highest Loss Streak 5 | . . . 5 2 To Critical Strikes . | . . . . . Average Slot Usage (%) 86 | . 97 100 83 66 Engine 12 | . 13 14 10 11 Treads 11 | . 6 1 13 22 Leg 4 | . 12 . 2 . Wheel 8 | . 7 26 8 . Device 3 | . 2 2 10 . Storage 12 | . 14 14 11 11 Processor 3 | . . . 3 11 Protection 5 | . 11 11 2 . Energy Gun 7 | . 16 . 8 . Ballistic Gun 1 | . 1 . 2 . Ballistic Cannon 4 | . 2 . 3 10 Launcher 4 | . 4 14 1 . Impact Weapon 2 | . 2 14 . . Naked Turns . | . . . . . Heaviest Build 56 | 14 51 53 56 55 Greatest Support 60 | 20 20 20 60 40 Greatest Overweight (x) 10 | . 10 5 5 2 Average Overweight (x) 1 | . 1 2 2 1 Largest Inventory Capacity 20 | 8 20 20 20 20 Average Capacity 17 | 8 11 20 20 20 Most Carried 20 | 6 16 20 20 17 Average Carried 15 | 6 10 19 17 16 Final Capacity 20 | 8 20 20 20 20 Final Carried 20 | 6 16 20 17 16 Class Distribution -------------------- 94% | Mutant 5% | Scavenger-Mutant Dominant Class ---------------- Mutant | -10/Materials Mutant | -10/Mines Mutant | -9/Materials Mutant | -9/Mines Resources | -11 -10 -10 -9 -9 ----------- Run | Jun Mat Min Mat Min Matter Collected 1378 | 206 353 163 623 33 Remotely . | . . . . . Salvage Created 2177 | 99 634 166 1213 65 Parts 118 | 6 44 10 53 5 Haulers Intercepted 4 | . 2 . 2 . Recyclers Shooed . | . . . . . Parts Field Recycled . | . . . . . Retrieved Matter . | . . . . . Parts Self-Destructed . | . . . . . Prevented . | . . . . . Kills | -11 -10 -10 -9 -9 ------- Run | Jun Mat Min Mat Min Combat Hostiles Destroyed 36 | . 9 8 17 2 Guns 18 | . 6 . 11 1 Cannons 3 | . . . 2 1 AOE 13 | . 3 8 2 . Classes Destroyed 12 | 2 7 . 3 . Worker 2 | . 1 . 1 . Builder 2 | . 2 . . . Tunneler 2 | 1 . . . 1 Hauler 4 | . 2 . 2 . Recycler 8 | 1 2 1 4 . Operator 3 | . 1 . 2 . Watcher 6 | . 2 . 4 . Swarmer 10 | . 3 6 1 . Grunt 21 | . 6 2 11 2 Brawler 1 | . . . 1 . Duelist 1 | . . . 1 . Sentry 3 | . . . 3 . Best Kill Streak 5 | 2 5 4 5 2 Combat Bots Only 4 | . 3 3 4 2 Max Kills in Single Turn 4 | 1 4 2 1 1 Gunslinging . | . . . . . Exploded 3 | . 3 2 1 . Melee . | . . . . . Uniques/NPCs Destroyed . | . . . . . Combat | -11 -10 -10 -9 -9 -------- Run | Jun Mat Min Mat Min Damage Taken 2603 | . 312 89 2010 192 Core 481 | . 73 3 378 27 Absorbed by Shields . | . . . . . Regen/Repaired (Parts) 134 | . . . 134 . Core Remaining (%) 84 | 100 . 69 . . Volleys Fired 214 | 5 59 10 123 17 Largest 2 | 2 2 1 2 1 Hottest 101 | 60 96 30 101 45 Shots Fired 264 | 10 80 10 144 20 Gun 208 | 10 78 . 117 3 Cannon 40 | . 1 . 22 17 Launcher 16 | . 1 10 5 . Special . | . . . . . Kinetic 100 | 5 21 . 57 17 Thermal 35 | . 3 . 32 . Explosive 16 | . 1 10 5 . Electromagnetic 113 | 5 55 . 50 3 Robot Hit Streak 10 | 2 6 2 10 6 Robot Miss Streak 4 | 2 4 2 4 2 Penetration Max . | . . . . . Secondary Targets 3 | . . . 3 . Max Gunslinging Chain 1 | . . . 1 . Shots Hit Robots 159 | 4 41 3 98 13 Core Hits 84 | 2 24 11 42 5 Critical Kills . | . . . . . Critical Parts Destroyed . | . . . . . Critical Strikes 4 | . 1 . 2 1 Burn 2 | . . . 2 . Blast 1 | . . . . 1 Corrupt 1 | . 1 . . . Melee Attacks 6 | . 2 1 3 . Impact 4 | . 2 1 1 . Slashing 2 | . . . 2 . Piercing . | . . . . . Sneak Attacks . | . . . . . Combat Hostiles . | . . . . . Follow-up Attacks . | . . . . . Damage Inflicted 3801 | 66 897 561 2027 250 Guns 2136 | 66 641 . 1394 35 Cannons 576 | . 16 . 352 208 Explosions 1082 | . 240 561 281 . Melee . | . . . . . Ramming 7 | . . . . 7 Kinetic 1098 | 24 186 . 680 208 Thermal 594 | . 95 . 499 . Explosive 897 | . 162 561 174 . Electromagnetic 1205 | 42 454 . 674 35 Impact . | . . . . . Slashing . | . . . . . Piercing . | . . . . . Highest Corruption 7 | . . . 7 7 Average Corruption 6 | . . . 5 7 Corruption Purged . | . . . . . Corruption Blocked . | . . . . . Effects 55 | . . . 24 31 Message Errors 13 | . . . 4 9 Matter Fused 11 | . . . 4 7 Heat Flow Errors 7 | . . . 4 3 Energy Discharges 7 | . . . 3 4 Parts Fused 1 | . . . . 1 Data Loss (minor) 8 | . . . 5 3 Misfires 4 | . . . 1 3 Alerts 2 | . . . 1 1 Weapon Failures 2 | . . . 2 . Overload Shots . | . . . . . Overflow Damage 45 | . 23 10 4 8 Projectiles 8 | . . . . 8 Explosions 37 | . 23 10 4 . Melee . | . . . . . Knockbacks 3 | . . . 2 1 Impact . | . . . . . Kinetic 3 | . . . 2 1 Secondary . | . . . . . Self-Inflicted Damage 138 | . 61 11 66 . Shots 7 | . 3 1 3 . Rammed 3 | . . 1 . 2 Targets Rammed 3 | . . 1 . 2 Kicked . | . . . . . Crushed . | . . . . . Highest Temperature 345 | . 107 4 345 167 Average Temperature 52 | . 22 2 81 52 Received Heat Transfer 1065 | . 138 36 765 126 Siege Activations . | . . . . . Robots Corrupted 2 | . . . 2 . Combat Hostiles 2 | . . . 2 . Parts Fried 7 | . 3 . 4 . Impact Corruptions . | . . . . . Robots Melted . | . . . . . Combat Hostiles . | . . . . . Parts Melted 1 | . . . 1 . Heat Transferred 1199 | . 137 . 1062 . Parts Sabotaged . | . . . . . Parts Stolen . | . . . . . Parts Stripped . | . . . . . Power Chain Reactions 5 | . 2 . 3 . Missiles Intercepted . | . . . . . Alert | -11 -10 -10 -9 -9 ------- Run | Jun Mat Min Mat Min Peak Influence 356 | 10 152 342 356 131 Initial 100 | . 6 47 55 100 Average 124 | 5 72 178 228 54 Maximum Alert Level 1 | . . 1 1 . Low Security (%) 76 | 100 100 64 31 100 Level 1 23 | . . 35 68 . Level 2 . | . . . . . Level 3 . | . . . . . Level 4 . | . . . . . Level 5 . | . . . . . High Security . | . . . . . Max Security . | . . . . . Squads Dispatched 5 | . 1 . 4 . Investigation 2 | . 1 . 1 . Extermination . | . . . . . Reinforcement 3 | . . . 3 . Assault . | . . . . . Garrison . | . . . . . Intercept . | . . . . . Searches Triggered . | . . . . . Construction Impeded 1 | . . . 1 . Haulers Reinforced . | . . . . . Active Scanning Responses . | . . . . . Cargo Convoy Interrupts . | . . . . . Stealth | -11 -10 -10 -9 -9 --------- Run | Jun Mat Min Mat Min Distress Signals 4 | . 1 . 3 . Communications Jammed . | . . . . . Distress Signals . | . . . . . Times Spotted 62 | . 18 8 31 5 Peak Tracking Total 6 | . 4 3 6 2 Tactical Retreats 4 | . 1 1 2 . Traps | -11 -10 -10 -9 -9 ------- Run | Jun Mat Min Mat Min Traps Triggered 3 | . 2 . 1 . Indirectly . | . . . . . Trap Hack Attempts . | . . . . . Triggered . | . . . . . Disarmed . | . . . . . Reprogrammed . | . . . . . Reused . | . . . . . Traps Extracted . | . . . . . Installed . | . . . . . Triggered . | . . . . . Machines | -11 -10 -10 -9 -9 ---------- Run | Jun Mat Min Mat Min Machines Disabled 3 | . . . 3 . Max in Single Turn 1 | . . . 1 . Machines Repaired . | . . . . . Machines Sabotaged . | . . . . . Overloaded Fab Kills . | . . . . . Hacking | -11 -10 -10 -9 -9 --------- Run | Jun Mat Min Mat Min Machines Accessed 7 | . 5 . 2 . Terminals 3 | . 3 . . . Fabricators . | . . . . . Repair Stations 1 | . . . 1 . Recycling Units 3 | . 2 . 1 . Scanalyzers . | . . . . . Garrison Access . | . . . . . Total Hacks 22 | . 11 . 11 . Successful 9 | . 5 . 4 . Failed 12 | . 5 . 7 . Catastrophic 2 | . 1 . 1 . Database Lockouts 1 | . 1 . . . Manual 9 | . 9 . . . Terminals 8 | . 8 . . . Fabricators . | . . . . . Repair Stations 8 | . . . 8 . Recycling Units 6 | . 3 . 3 . Scanalyzers . | . . . . . Garrison Access . | . . . . . Terminal Hacks 3 | . 3 . . . Robot Analysis 3 | . 3 . . . Fabricator Hacks . | . . . . . Repair Station Hacks 4 | . . . 4 . Scan Component 2 | . . . 2 . Repair 2 | . . . 2 . Recycling Unit Hacks 2 | . 2 . . . Retrieve Components 2 | . 2 . . . Scanalyzer . | . . . . . Garrison Access Hacks . | . . . . . Unauthorized Hacks . | . . . . . Terminals . | . . . . . Fabricators . | . . . . . Repair Stations . | . . . . . Recycling Units . | . . . . . Scanalyzers . | . . . . . Garrison Access . | . . . . . Data Cores Recovered 1 | . 1 . . . Used 1 | . 1 . . . Hacking Detections 6 | . 4 . 2 . Full Trace Events 2 | . 1 . 1 . Feedback Events . | . . . . . Feedback Blocked . | . . . . . Robot Schematics Acquired . | . . . . . Robots Built . | . . . . . Authchips . | . . . . . Time . | . . . . . Total Robot Build Rating . | . . . . . Part Schematics Acquired . | . . . . . Parts Built . | . . . . . Authchips . | . . . . . Time . | . . . . . Total Part Build Rating . | . . . . . Parts Repaired 2 | . . . 2 . Time 77 | . . . 77 . Parts Recycled . | . . . . . Recycled Matter . | . . . . . Retrieved Matter . | . . . . . Retrieved Components 2 | . 2 . . . Parts Scanalyzed . | . . . . . Part Schematics Acquired . | . . . . . Parts Damaged . | . . . . . Bothacking | -11 -10 -10 -9 -9 ------------ Run | Jun Mat Min Mat Min Used RIF Installer . | . . . . . Robots Hacked . | . . . . . Non-combat . | . . . . . Combat . | . . . . . Robot Hacks Applied . | . . . . . Relay Couplers Released . | . . . . . Fabnet Peak Effective % . | . . . . . Robots Rewired . | . . . . . Allies Hacked . | . . . . . Hacks Repelled . | . . . . . Allies | -11 -10 -10 -9 -9 -------- Run | Jun Mat Min Mat Min Total Allies 4 | . . 1 . 3 Largest Group 3 | . . 1 1 3 Highest-Rated Group 40 | . . 31 31 40 Highest-Rated Ally 31 | . . 31 31 16 Total Orders . | . . . . . Ally Attacks 6 | . . . 5 1 Total Damage 306 | . . . 289 17 Kills 3 | . . . 2 1 Allies Corrupted . | . . . . . Allies Melted . | . . . . . Intel | -11 -10 -10 -9 -9 ------- Run | Jun Mat Min Mat Min Robot Analysis Total 3 | . 3 . . . Derelict Logs Recovered 1 | . . 1 . . Drone Launches . | . . . . . Drone Recoveries . | . . . . . Exploration | -11 -10 -10 -9 -9 ------------- Run | Jun Mat Min Mat Min Turns Passed 3627 | 28 1183 556 939 921 Spaces Moved 1747 | 11 626 461 294 355 Core 16 | . 16 . . . Treads 457 | . . . 102 355 Legs 357 | 11 336 . 10 . Wheels 917 | . 274 461 182 . Hover . | . . . . . Flight . | . . . . . Fastest Speed 101 | 120 110 110 101 240 Average Speed 163 | 120 154 113 171 240 Slowest Speed 550 | 120 550 155 470 320 Overloaded Moves . | . . . . . Propulsion Burnouts . | . . . . . Robots Hopped . | . . . . . Cave-ins Triggered . | . . . . . Exploration Rate (%) 52 | 2 78 91 28 61 Regions Visited 4 Branch Regions 2 Pre-discovered Areas . | . . . . . Known Exits Taken 1 | . . . 1 . Unknown Exits Taken 3 | 1 1 1 . . Scrap Searched 2 | . . 1 . 1 Spaces Dug 4 | . 2 . 2 . Terrain Destroyed 114 | . 14 68 30 2 Melee 4 | . 2 . 2 . Projectile 4 | . . . 2 2 AOE 106 | . 12 68 26 . Terrain Rammed . | . . . . . Walls Destroyed . | . . . . . Machines Disabled . | . . . . . Actions | -11 -10 -10 -9 -9 --------- Run | Jun Mat Min Mat Min Total 2229 | 15 754 483 573 404 Wait 120 | . . . 91 29 Move 1743 | 10 625 460 293 355 Hop . | . . . . . Pick Up 36 | . 18 4 14 . Fast Attach 23 | . 12 2 9 . Attach 21 | . 3 . 17 1 Detach 3 | . 1 1 1 . Swap 32 | . 15 2 15 . Drop 28 | . 19 2 7 . Fire 214 | 5 59 10 123 17 Melee 6 | . 2 1 3 . Ram 1 | . . 1 . . Kick . | . . . . . Crush 2 | . . . . 2 Escape Stasis . | . . . . . Rewire . | . . . . . Trap . | . . . . . Miscellaneous . | . . . . . Route ------- -11/Junkyard -10/Materials (discovered 2 exits: *Mat / [*Min]) -10/Mines -9/Materials -9/Mines (discovered 1 exit: [*Mat]) History --------- Turn | Location | Event 7 | -11/Junkyard | Discovered new exit (range 3) 29 | -11/Junkyard | Entered Materials 66 | -10/Materials | Discovered new exit (range 15) 318 | -10/Materials | Build established: Mutant 734 | -10/Materials | Central database locked down 738 | -10/Materials | Discovered new exit (range 3) 1212 | -10/Materials | Entered Mines 1435 | -10/Mines | Learned location of 1 exit from Materials 1553 | -10/Mines | Received a Mining Laser from a helpful Derelict 1722 | -10/Mines | Found a damaged Exp. Sensor Array with a note attached 1725 | -10/Mines | Found Prototype Device 1725 | -10/Mines | Identified Exp. Sensor Array 1755 | -10/Mines | Discovered new exit (range 8) 1768 | -10/Mines | Entered Materials 1768 | -9/Materials | Accompanied by 1 ally 1768 | -9/Materials | Evolved 2 slots: Propulsion x1, Utility x1 1769 | -9/Materials | Identified exit to Mines 1942 | -9/Materials | Lost 5 parts (3n1u1w) 2272 | -9/Materials | Lost 3 parts (2n1u) 2404 | -9/Materials | Core integrity fell below 50% 2507 | -9/Materials | Repaired Lgt. Treads 2559 | -9/Materials | Repaired Imp. Flight Unit 2670 | -9/Materials | Core integrity fell below 20% 2707 | -9/Materials | Entered Mines 2760 | -9/Mines | Discovered new exit (range 16) 2916 | -9/Mines | Assisted by bots powering up and referring to "LRC-V3" 3281 | -9/Mines | Found a hidden stash of uninstalled traps 3628 | -9/Mines | Destroyed by G-34 Mercenary with Small Laser Last Messages --------------- 03457_ System corrupted: Heat flow error (+189). 03460_ Searching scrap... 03460_ Found Spread Laser. 03460_ Found Hcp. Matter Pod. 03460_ Found 11 Matter. 03461_ Acquired 11 matter. 03488_ |GNAXYWQQ95WSZUM0UTMDHS%3M34PJE7P#/84DY 03495_ A derelict is hurriedly installing traps. 03496_ Slammed into R-06 Scavenger. 03497_ A6-XRJ(g): "Hehe, this'll put a wrench in their mining defense operations..." 03497_ A6-XRJ(g) slips into the shadows. 03503_ System corrupted: Imp. Light Cannon fused. 03511_ Slammed into K-01 Serf. 03548_ System corrupted: Matter fused (-8). 03564_ System corrupted: Matter fused (-6). 03581_ System corrupted: Energy discharge (-78). 03589_ T-07 Excavator is excavating. 03625_ G-34 Mercenary destroyed. 03626_ Lgt. Treads destroyed. Map ----- +----------------------------------------------------+ | ????????????????????????????# ######### #?? | | ????????????????????????????## #$ ^ ?## | | ?????????????????????????????# ##### # ## # | | ?????????????????????????????## ##???# # ^# ^ ^? | | ??????????????????????????###### ###### # # #??? | | ????????????????????#?????# #????? | | ????????????????????# ????# ########^ # | | ????????????????????# ????# ######??????#####^ ## | | ????????????????????# ???# #?????????????????##? | | ????????????????????# #??# #???????????????????? | | ????????????????????# ### #????#####??????????? | | ???????????????????## ###### ##?????????? | | ???????????????????# ## ##????????? | | ???????????????????## ###??????? | | ????????????????????#### ### #??? | | ???????????????????????## ##?## #### #????? | | ????????????????????????# ##???# #????????????? | | ??????????????????????? #????## ##???????????? | | ??????????????????????### #?????## ##### #?????? | | ????????????????????????# #??????## #?????? | | ????????????????????????# #???????# #?????? | | ??????????# ## ???????#g#???????# ########?????? | | ??????????# g ?????# #???????# #????????????? | | ??????????? !%= ???# ######### #????????????? | | ????????????????# ## #????????????? | | ?????????????????# g @###########????????????? | | ?????????????????### g #??????????????????????? | | ???????????????????########??????????????????????? | | ?????????????????????????????????????????????????? | | | | | | | | | | | | | | | | | | | | | | | | | | | | | | | | | | | | | | | | | | | +----------------------------------------------------+ Best States ------------- Heat Dissipation 38 Energy Generation 14 Energy Capacity 280 Matter Stores 300 Matter Capacity 300 Sight Range 16 Terrain Scan Density 10 Armor Coverage 150 Evasion (%) 55 Recoil Reduction 3 Item Schematics ----------------- None Robot Schematics ------------------ None Fabricated ------------ Nothing Alien Tech Used ----------------- None Achievements -------------- None Challenges ------------ None Game ------ Seed WeldingTrapLattice Manual? 0 Play Time 00:37:46 Cumulative 76.3 hours Start 2023.08.27 @ 21:35:02 End 2023.08.27 @ 22:10:14 Sessions 1 Manual Loads 0 Difficulty Rogue Special Mode None Game No. 71 Rogue 71 Adventurer 0 Explorer 0 Win Type - Total 1 Types 1/0/0/0/0/0/0/0/0 Lore% 41 Gallery% 34 Achievement% 37 Wizard Run 0 Options --------- ASCII 0 Keyboard 0 Movement Mouse Keybinds 0 Fullscreen 1 Font 16/SmallcapsGlow Map View 84x54 Tactical HUD 1 Map Filters NONE Filters NONE Steam 1 RUN: 2679c432-d4ec-4f4c-98da-a767e217a5c5